lending/lending_fUSD_20250224
["ID","MTS","AMOUNT","RATE_DAILY","PERIOD"]
[354340009,1740435032470,-297.31,0.00020664,2]
[354340011,1740435032486,-2456.22936977,0.00020664,2]
[354340013,1740435032496,-170.73036271,0.00020756,2]
[354340015,1740435032506,-83086.25451825,0.00020756,2]
[354340018,1740435032518,-268.37013999,0.00020756,2]
[354340020,1740435032530,-63427.64778789,0.00020756,2]
[354340022,1740435032540,-151.0,0.00020764,2]
[354340024,1740435032550,-151.0,0.00020764,2]
[354340026,1740435032561,-151.0,0.00020764,2]
[354340028,1740435032570,-151.0,0.00020764,2]
[354340030,1740435032580,-170.77,0.00020812,2]
[354340032,1740435032590,-4901.35784293,0.000209,2]
[354340034,1740435032601,-200.0,0.00021017,2]
[354340036,1740435032610,-300.0,0.00021885,2]
[354340038,1740435032620,-500.0,0.00021921,2]
[354340040,1740435032631,-279.35,0.00021981,30]
[354340042,1740435032641,-150.0,0.00022,2]
[354340044,1740435032651,-490.55,0.00022188,2]
[354340046,1740435032662,-3191.15053111,0.00022281,2]
[354340048,1740435032672,-151.0,0.000223,7]
[354340050,1740435032682,-151.0,0.000223,7]
[354340052,1740435032692,-151.0,0.000223,7]
[354340054,1740435032702,-151.0,0.000223,7]
[354340056,1740435032712,-500.0,0.00022469,2]
[354340058,1740435032723,-1664.59843595,0.00022799,2]
[354340060,1740435032747,-200.0,0.00023,2]
[354340062,1740435032758,-237.58,0.00023252,2]
[354340064,1740435032769,-2455.54902877,0.00023397,2]
[354340066,1740435032781,-11379.48112584,0.00023779,2]
[354340068,1740435032791,-2318.82,0.00023786,2]
[354340070,1740435032802,-3191.15053111,0.00023898,2]
[354340072,1740435032816,-151.0,0.000239,7]
[354340074,1740435032826,-151.0,0.000239,7]
[354340076,1740435032836,-151.0,0.000239,7]
[354340078,1740435032848,-151.878976,0.000239,7]
[354340080,1740435032858,-151.0,0.00024,7]
[354340082,1740435032869,-151.0,0.00024,7]
[354340083,1740435032879,-151.0,0.00024,7]
[354340085,1740435032890,-7478.89884318,0.00024062,2]
[354340087,1740435032900,-600.0,0.00024136,2]
[354340089,1740435032910,-262.18,0.000242,7]
[354340091,1740435032920,-150.0,0.00024325,2]
[354340093,1740435032929,-370.39,0.00024354,2]
[354340095,1740435032939,-163.02,0.00024395,2]
[354340097,1740435032950,-275.38,0.00024395,2]
[354340099,1740435032962,-490.55,0.00024452,2]
[354340101,1740435032971,-279.35,0.00024565,30]
[354340103,1740435032981,-1500.0,0.00024622,2]
[354340105,1740435032991,-1000.0,0.00024658,2]
[354340107,1740435033000,-2233.18,0.00024784,2]
[354340109,1740435033010,-500.0,0.00024932,2]
[354340111,1740435033020,-500.0,0.00024932,2]
[354340113,1740435033029,-500.0,0.00024932,2]
[354340115,1740435033040,-151.0,0.00025033,7]
[354340116,1740435033050,-151.0,0.00025033,7]
[354340118,1740435033060,-151.0,0.00025033,7]
[354340120,1740435033072,-157.27,0.00025137,2]
[354340122,1740435033082,-2889.363,0.00025137,9]
[354340123,1740435033092,-179.421,0.00025137,9]
[354340125,1740435033103,-1090.72,0.0002516,120]
[354340127,1740435033113,-3191.15053111,0.00025515,2]
[354340129,1740435033123,-341.1436,0.00025888,30]
[354340131,1740435033134,-163.02,0.00026428,2]
[354340132,1740435033145,-1000.0,0.00026669,2]
[354340134,1740435033155,-490.55,0.00026716,2]
[354340136,1740435033166,-151.0,0.00026744,7]
[354340138,1740435033176,-151.0,0.00026744,7]
[354340139,1740435033186,-151.0,0.00026744,7]
[354340141,1740435033197,-151.0,0.00027,7]
[354340143,1740435033208,-151.0,0.00027,7]
[354340145,1740435033218,-151.0,0.00027,7]
[354340148,1740435033240,-150.51,0.00027084,2]
[354340150,1740435033256,-3191.15053111,0.00027132,2]
[354340152,1740435033278,-279.35,0.00027149,30]
[354340155,1740435033297,-150.0,0.00027412,2]
[354340157,1740435033313,-151.0,0.00028,7]
[354340160,1740435033331,-151.0,0.00028,7]
[354340162,1740435033352,-151.0,0.00028,7]
[354340165,1740435033373,-1090.72,0.00028305,120]
[354340167,1740435033394,-8795.24,0.00028379,2]
[354340170,1740435033414,-163.02,0.00028461,2]
[354340173,1740435033435,-3191.15053111,0.0002875,2]
[354340175,1740435033453,-162.12324438,0.00028879,2]
[354340177,1740435033471,-490.55,0.00028979,2]
[354340180,1740435033490,-250.0,0.00029292,2]
[354340182,1740435033507,-1000.0,0.000295,2]
[354340184,1740435033524,-22115.83158829,0.000297,2]
[354340186,1740435033538,-800.37220396,0.000297,2]
[354340188,1740435033558,-320.69866193,0.000297,2]
[354340190,1740435033575,-423.9764473,0.00029725,2]
[354340193,1740435033592,-279.35,0.00029733,30]
[354340195,1740435033610,-648.0976,0.000298,2]
[354340197,1740435033627,-115041.81409416,0.000298,2]
[354340200,1740435033644,-151.0,0.000298,7]
[354340202,1740435033661,-151.491397,0.000298,7]
[354340204,1740435033677,-151.0,0.000298,7]
[354340206,1740435033694,-266.9819,0.000298,7]
[354340209,1740435033711,-151.0,0.000298,7]
[354340211,1740435033727,-151.0,0.000298,7]
[354340213,1740435033744,-151.763718,0.000298,7]
[354340216,1740435033760,-1714.615142,0.000298,7]
[354340218,1740435033776,-1714.615142,0.000298,7]
[354340220,1740435033791,-151.0,0.000298,7]
[354340221,1740435033810,-151.0,0.000298,7]
[354340222,1740435033826,-151.0,0.000298,7]
[354340223,1740435033842,-599.41512143,0.000298,2]
[354340224,1740435033861,-151.0,0.000298,7]
[354340225,1740435033877,-151.0,0.000298,7]
[354340226,1740435033894,-1400.0,0.000298,10]
[354340227,1740435033911,-364.352786,0.000298,7]
[354340228,1740435033927,-364.352786,0.000298,7]
[354340229,1740435033942,-151.0,0.000298,7]
[354340230,1740435033958,-151.0,0.000298,7]
[354340231,1740435033975,-151.0,0.000298,7]
[354340232,1740435033991,-151.0,0.000298,7]
[354340233,1740435034006,-151.0,0.000298,7]
[354340234,1740435034021,-151.0,0.000298,7]
[354340235,1740435034037,-151.0,0.000298,7]
[354340236,1740435034052,-194.150288,0.000298,7]
[354340237,1740435034069,-176.77584246,0.000298,2]
[354340238,1740435034085,-194.150288,0.000298,7]
[354340239,1740435034101,-151.0,0.000298,7]
[354340240,1740435034117,-236.37139328,0.000298,2]
[354340241,1740435034133,-179.243498,0.000298,7]
[354340242,1740435034149,-179.243498,0.000298,7]
[354340243,1740435034165,-151.0,0.000298,7]
[354340244,1740435034181,-151.0,0.000298,7]
[354340245,1740435034198,-236.37139326,0.0002985,2]
[354340246,1740435034214,-500.0,0.00029873,5]
[354340247,1740435034230,-500.0,0.00029873,10]
[354340248,1740435034245,-500.0,0.00029899,2]
[354340249,1740435034261,-500.0,0.00029899,2]
[354340250,1740435034277,-500.0,0.00029899,2]
[354340251,1740435034293,-500.0,0.00029899,2]
[354340252,1740435034310,-536.77544641,0.00029899,2]
[354340253,1740435034326,-500.0,0.00029899,2]
[354340254,1740435034343,-500.0,0.00029899,2]
[354340255,1740435034360,-500.0,0.00029899,2]
[354340256,1740435034375,-500.0,0.00029899,2]
[354340257,1740435034393,-500.0,0.00029899,2]
[354340258,1740435034410,-500.0,0.00029899,2]
[354340259,1740435034427,-500.0,0.00029899,2]
[354340260,1740435034442,-500.0,0.00029899,2]
[354340261,1740435034459,-500.0,0.00029899,2]
[354340262,1740435034475,-500.0,0.00029899,2]
[354340263,1740435034491,-500.0,0.00029899,2]
[354340264,1740435034508,-500.0,0.00029899,2]
[354340265,1740435034520,-500.0,0.00029899,2]
[354340266,1740435034531,-500.0,0.00029899,2]
[354340267,1740435034542,-500.0,0.00029899,2]
[354340268,1740435034553,-266.51683736,0.000299,5]
[354340269,1740435034564,-127965.05365094,0.000299,15]
[354340270,1740435034583,-360.01999457,0.000299,15]
[354340271,1740435034900,-69979.73673152,0.000299,15]
[354340272,1740435034914,-203.3519,0.000299,2]
[354340273,1740435034924,-366734.45254464,0.000299,2]
[354340274,1740435034936,-16964.33660003,0.000299,2]
[354340275,1740435034956,-143479.87945533,0.000299,2]
[354340276,1740435034966,-172.95717648,0.000299,2]
[354340277,1740435034975,-268.202459,0.000299,7]
[354340278,1740435034986,-500.0,0.000299,10]
[354340279,1740435034995,-1714.615142,0.000299,7]
[354340280,1740435035005,-1714.615142,0.000299,7]
[354340281,1740435035015,-151.0,0.000299,7]
[354340282,1740435035025,-167.69342,0.000299,7]
[354340283,1740435035035,-151.0,0.000299,7]
[354340284,1740435035044,-151.0,0.000299,7]
[354340285,1740435035054,-2800.0,0.000299,10]
[354340286,1740435035063,-364.352786,0.000299,7]
[354340287,1740435035073,-364.352786,0.000299,7]
[354340288,1740435035083,-364.352786,0.000299,7]
[354340289,1740435035092,-364.352786,0.000299,7]
[354340290,1740435035102,-151.0,0.000299,7]
[354340291,1740435035112,-151.0,0.000299,7]
[354340292,1740435035123,-151.0,0.000299,7]
[354340293,1740435035134,-242.175104,0.000299,7]
[354340294,1740435035144,-151.0,0.000299,7]
[354340295,1740435035154,-151.0,0.000299,7]
[354340296,1740435035165,-151.0,0.000299,7]
[354340297,1740435035177,-151.0,0.000299,7]
[354340298,1740435035187,-194.150288,0.000299,7]
[354340299,1740435035199,-194.150288,0.000299,7]
[354340300,1740435035210,-194.150288,0.000299,7]
[354340301,1740435035220,-194.150288,0.000299,7]
[354340302,1740435035230,-151.0,0.000299,7]
[354340303,1740435035240,-151.0,0.000299,7]
[354340304,1740435035250,-179.243498,0.000299,7]
[354340305,1740435035260,-179.243498,0.000299,7]
[354340306,1740435035269,-236.37139326,0.000299,2]
[354340307,1740435035279,-179.243498,0.000299,7]
[354340308,1740435035288,-179.243498,0.000299,7]
[354340309,1740435035298,-151.0,0.000299,7]
[354340310,1740435035307,-151.0,0.000299,7]
[354340311,1740435035317,-151.0,0.000299,7]
[354340312,1740435035328,-151.0,0.000299,7]
[354340313,1740435035337,-985.13560939,0.0002999,2]
[354340314,1740435035347,-1172.69756,0.0002999,2]
[354340315,1740435035357,-100000.0,0.0003,30]
[354340316,1740435035368,-270.70637981,0.0003,30]
[354340317,1740435035379,-87830.37621005,0.0003,3]
[354340318,1740435035389,-200.0,0.0003,30]
[354340319,1740435035399,-151.0,0.0003,7]
[354340320,1740435035409,-5000.0,0.0003,30]
[354340321,1740435035419,-252.590766,0.0003,7]
[354340322,1740435035429,-151.000001,0.0003,7]
[354340323,1740435035438,-151.0,0.0003,7]
[354340324,1740435035448,-151.0,0.0003,7]
[354340325,1740435035458,-151.0,0.0003,7]
[354340326,1740435035468,-1714.615142,0.0003,7]
[354340327,1740435035478,-1714.615142,0.0003,7]
[354340328,1740435035488,-1714.615142,0.0003,7]
[354340329,1740435035498,-1714.615142,0.0003,7]
[354340330,1740435035507,-151.0,0.0003,7]
[354340331,1740435035517,-151.0,0.0003,7]
[354340332,1740435035526,-3059.542,0.0003,30]
[354340333,1740435035536,-364.352786,0.0003,7]
[354340334,1740435035546,-364.352786,0.0003,7]
[354340335,1740435035556,-364.352786,0.0003,7]
[354340336,1740435035566,-364.352786,0.0003,7]
[354340337,1740435035576,-151.0,0.0003,7]
[354340338,1740435035587,-251.408002,0.0003,7]
[354340339,1740435035596,-151.0,0.0003,7]
[354340340,1740435035606,-151.0,0.0003,7]
[354340341,1740435035618,-151.0,0.0003,7]
[354340342,1740435035628,-151.0,0.0003,7]
[354340343,1740435035639,-194.150288,0.0003,7]
[354340344,1740435035649,-194.150288,0.0003,7]
[354340345,1740435035660,-194.150288,0.0003,7]
[354340346,1740435035670,-194.150288,0.0003,7]
[354340347,1740435035680,-151.0,0.0003,7]
[354340348,1740435035690,-154.876463,0.0003,7]
[354340349,1740435035700,-179.243498,0.0003,7]
[354340350,1740435035710,-179.243498,0.0003,7]
[354340351,1740435035719,-179.243498,0.0003,7]
[354340352,1740435035735,-179.243498,0.0003,7]
[354340353,1740435035751,-151.0,0.0003,7]
[354340354,1740435035761,-151.0,0.0003,7]
[354340355,1740435035771,-151.0,0.0003,7]
[354340356,1740435035782,-219.528404,0.0003,7]
[354340357,1740435035793,-1000.0,0.00030003,2]
[354340358,1740435035804,-22115.8315882,0.00030333,2]
[354340359,1740435035817,-3191.15053111,0.00030367,2]
[354340360,1740435035827,-153.852152,0.00030393,2]
[354340361,1740435035837,-745.16599986,0.00030421,5]
[354340362,1740435035847,-163.02,0.00030494,2]
[354340363,1740435035857,-264.022505,0.00030498,120]
[354340364,1740435035867,-150.0,0.00030498,2]
[354340365,1740435035876,-150.0,0.00030575,7]
[354340366,1740435035887,-299.0820543,0.00030575,7]
[354340367,1740435035897,-150.0,0.00030575,7]
[354340368,1740435035907,-334.4080248,0.00030684,4]
[354340369,1740435035917,-150.0,0.00030884,7]
[354340370,1740435035926,-1000.0,0.000309,2]
[354340371,1740435035936,-3063.56784207,0.000309,2]
[354340372,1740435035945,-4200.0,0.000309,11]
[354340373,1740435035955,-22115.8315882,0.00030967,2]
[354340374,1740435035966,-151.0,0.00030967,7]
[354340375,1740435035976,-151.0,0.00030967,7]
[354340376,1740435035986,-194.150288,0.00030967,7]
[354340377,1740435035996,-194.150288,0.00030967,7]
[354340378,1740435036006,-179.243498,0.00030967,7]
[354340379,1740435036016,-179.243498,0.00030967,7]
[354340380,1740435036027,-151.0,0.00030967,7]
[354340381,1740435036037,-1714.615142,0.0003099,7]
[354340382,1740435036046,-1714.615142,0.0003099,7]
[354340383,1740435036057,-168.49,0.00030997,2]
[354340384,1740435036067,-1714.615142,0.00030998,7]
[354340385,1740435036076,-1714.615142,0.00030998,7]
[354340386,1740435036086,-151.0,0.00030999,7]
[354340387,1740435036095,-151.0,0.00030999,7]
[354340388,1740435036106,-151.0,0.00030999,7]
[354340389,1740435036116,-151.0,0.00030999,7]
[354340390,1740435036125,-151.0,0.00030999,7]
[354340391,1740435036135,-151.0,0.00030999,7]
[354340392,1740435036144,-151.0,0.00030999,7]
[354340393,1740435036154,-999.0,0.00030999,2]
[354340394,1740435036164,-100000.0,0.00031,32]
[354340395,1740435036174,-472061.46087396,0.00031,2]
[354340396,1740435036184,-151.0,0.00031,7]
[354340397,1740435036193,-151.0,0.00031,7]
[354340398,1740435036203,-151.0,0.00031,7]
[354340399,1740435036213,-151.0,0.00031,7]
[354340400,1740435036223,-151.0,0.00031,7]
[354340401,1740435036232,-151.0,0.00031,7]
[354340402,1740435036242,-151.0,0.00031,7]
[354340403,1740435036251,-151.0,0.00031,7]
[354340404,1740435036261,-151.0,0.00031,7]
[354340405,1740435036271,-151.0,0.00031,7]
[354340406,1740435036281,-152.575449,0.00031,7]
[354340407,1740435036290,-151.0,0.00031,7]
[354340408,1740435036299,-151.0,0.00031,7]
[354340409,1740435036309,-167.537347,0.00031,7]
[354340410,1740435036318,-151.0,0.00031,7]
[354340411,1740435036327,-151.0,0.00031,7]
[354340412,1740435036337,-290.109379,0.00031,7]
[354340413,1740435036346,-151.0,0.00031,7]
[354340414,1740435036356,-151.0,0.00031,7]
[354340415,1740435036367,-1714.615142,0.00031,7]
[354340416,1740435036377,-1714.615142,0.00031,7]
[354340417,1740435036387,-1714.615142,0.00031,7]
[354340418,1740435036396,-1714.615142,0.00031,7]
[354340419,1740435036406,-151.0,0.00031,7]
[354340420,1740435036416,-153.16253,0.00031,7]
[354340421,1740435036425,-364.352786,0.00031,7]
[354340422,1740435036436,-364.352786,0.00031,7]
[354340423,1740435036446,-364.352786,0.00031,7]
[354340424,1740435036456,-364.352786,0.00031,7]
[354340425,1740435036466,-163.49699,0.00031,7]
[354340426,1740435036476,-151.0,0.00031,7]
[354340427,1740435036485,-250.860035,0.00031,7]
[354340428,1740435036495,-194.150288,0.00031,7]
[354340429,1740435036504,-194.150288,0.00031,7]
[354340430,1740435036514,-194.150288,0.00031,7]
[354340431,1740435036523,-194.150288,0.00031,7]
[354340432,1740435036533,-179.243498,0.00031,7]
[354340433,1740435036543,-179.243498,0.00031,7]
[354340434,1740435036552,-179.243498,0.00031,7]
[354340435,1740435036562,-179.243498,0.00031,7]
[354340436,1740435036572,-151.0,0.00031,7]
[354340437,1740435036581,-151.0,0.00031,7]
[354340438,1740435036591,-150.0,0.00031193,7]
[354340439,1740435036602,-490.55,0.00031243,2]
[354340440,1740435036612,-150.0,0.00031255,7]
[354340441,1740435036621,-1000.0,0.00031311,2]
[354340442,1740435036630,-1000.0,0.00031311,2]
[354340443,1740435036641,-1000.0,0.00031311,2]
[354340444,1740435036651,-783.0,0.00031388,2]
[354340445,1740435036662,-2650.0,0.000314,10]
[354340446,1740435036672,-1090.72,0.0003145,120]
[354340447,1740435036683,-150.0,0.00031502,7]
[354340448,1740435036693,-22115.8315882,0.000316,2]
[354340449,1740435036703,-151.0,0.00031762,7]
[354340450,1740435036713,-152.402249,0.00031762,7]
[354340451,1740435036722,-151.0,0.00031762,7]
[354340452,1740435036733,-168.755285,0.00031762,7]
[354340453,1740435036743,-168.755285,0.00031762,7]
[354340454,1740435036753,-151.308504,0.00031762,7]
[354340455,1740435036762,-151.0,0.00031762,7]
[354340456,1740435036772,-151.0,0.00031762,7]
[354340457,1740435036783,-151.0,0.00031762,7]
[354340458,1740435036792,-151.0,0.00031762,7]
[354340459,1740435036803,-151.0,0.00031762,7]
[354340460,1740435036817,-151.0,0.00031762,7]
[354340461,1740435036827,-151.0,0.00031762,7]
[354340462,1740435036837,-151.0,0.00031762,7]
[354340463,1740435036848,-151.0,0.00031762,7]
[354340464,1740435036857,-150.0,0.00031799,2]
[354340465,1740435036867,-150.0,0.00031811,7]
[354340466,1740435036877,-1714.615142,0.00031833,7]
[354340467,1740435036888,-1714.615142,0.00031833,7]
[354340468,1740435036899,-150.0,0.00031934,7]
[354340469,1740435036908,-2323.0,0.00031964,5]
[354340470,1740435036918,-3191.15053111,0.00031984,2]
[354340471,1740435036927,-666.0,0.00031999,10]
[354340472,1740435036937,-300.0,0.00031999,10]
[354340473,1740435036947,-666.0,0.00031999,10]
[354340474,1740435036956,-300.0,0.00031999,10]
[354340475,1740435036966,-100000.0,0.00032,34]
[354340476,1740435036976,-151.0,0.00032,7]
[354340477,1740435036986,-151.0,0.00032,7]
[354340478,1740435036996,-168.755285,0.00032,7]
[354340479,1740435037006,-168.755285,0.00032,7]
[354340480,1740435037016,-151.0,0.00032,7]
[354340481,1740435037027,-151.0,0.00032,7]
[354340482,1740435037038,-151.0,0.00032,7]
[354340483,1740435037048,-151.0,0.00032,7]
[354340484,1740435037058,-151.0,0.00032,7]
[354340485,1740435037070,-178.961456,0.00032,7]
[354340486,1740435037080,-151.0,0.00032,7]
[354340487,1740435037090,-1714.615142,0.00032,7]
[354340488,1740435037100,-1714.615147,0.00032,7]
[354340489,1740435037110,-364.352786,0.00032,7]
[354340490,1740435037120,-364.352786,0.00032,7]
[354340491,1740435037129,-194.150288,0.00032,7]
[354340492,1740435037139,-194.150288,0.00032,7]
[354340493,1740435037149,-179.243498,0.00032,7]
[354340494,1740435037158,-179.243498,0.00032,7]
[354340495,1740435037167,-151.0,0.00032,7]
[354340496,1740435037177,-150.0,0.0003212,7]
[354340497,1740435037187,-151.8,0.00032176,2]
[354340498,1740435037196,-22115.8315882,0.00032233,2]
[354340499,1740435037206,-279.35,0.00032317,30]
[354340500,1740435037215,-599.41512141,0.00032351,2]
[354340501,1740435037224,-150.0,0.00032428,7]
[354340502,1740435037234,-150.0,0.00032439,2]
[354340503,1740435037243,-150.0,0.000325,30]
[354340504,1740435037253,-382.53447947,0.000325,30]
[354340505,1740435037263,-150.0,0.00032521,2]
[354340506,1740435037273,-163.02,0.00032527,2]
[354340507,1740435037283,-237.58,0.00032553,2]
[354340508,1740435037294,-152.0,0.00032588,3]
[354340509,1740435037304,-150.0,0.00032614,7]
[354340510,1740435037315,-325.0,0.00032694,120]
[354340511,1740435037325,-150.0,0.00032737,7]
[354340512,1740435037335,-22115.8315882,0.00032867,2]
[354340513,1740435037346,-507.74,0.00032876,20]
[354340514,1740435037357,-5600.0,0.000329,12]
[354340515,1740435037368,-5486.0,0.00032959,2]
[354340516,1740435037380,-194.150288,0.00032959,7]
[354340517,1740435037390,-194.150294,0.00032959,7]
[354340518,1740435037400,-179.243498,0.00032959,7]
[354340519,1740435037411,-179.24349,0.00032959,7]
[354340520,1740435037421,-151.0,0.00032959,7]
[354340523,1740435037432,-666.0,0.00032999,10]
[354340525,1740435037442,-666.0,0.00032999,10]
[354340526,1740435037452,-300.0,0.00032999,10]
[354340527,1740435037462,-151.0,0.00032999,7]
[354340528,1740435037472,-151.0,0.00032999,7]
[354340529,1740435037482,-300.0,0.00032999,10]
[354340530,1740435037492,-500.0,0.00032999,7]
[354340532,1740435037503,-668.57353053,0.00032999,10]
[354340534,1740435037514,-300.0,0.00032999,10]
[354340535,1740435037524,-100000.0,0.00033,36]
[354340537,1740435037534,-123828.96164364,0.00033,20]
[354340540,1740435037549,-431.2508,0.00033,20]
[354340541,1740435037561,-2310.80001,0.00033,20]
[354340542,1740435037582,-254.4,0.00033,20]
[354340543,1740435037594,-469.21875,0.00033,20]
[354340544,1740435037606,-19852.96081902,0.00033,20]
[354340545,1740435037617,-4014.45255788,0.00033,20]
[354340546,1740435037629,-1326.67887842,0.00033,20]
[354340634,1740435038864,-18818.6,0.00033,20]
[354340636,1740435038877,-452.3417249,0.00033,20]
[354340638,1740435038889,-1734.8,0.00033,20]
[354340640,1740435038902,-282.23840945,0.00033,20]
[354340643,1740435038919,-12757.6500002,0.00033,20]
[354340645,1740435038932,-369.46019124,0.00033,20]
[354340647,1740435038944,-2875.04366195,0.00033,20]
[354340649,1740435038957,-683.85143187,0.00033,20]
[354340652,1740435038971,-263.4477225,0.00033,20]
[354340654,1740435038984,-40391.14198653,0.00033,20]
[354340656,1740435038996,-4680.13556655,0.00033,20]
[354340658,1740435039008,-5305.89398936,0.00033,20]
[354340660,1740435039020,-3370.46832425,0.00033,20]
[354340662,1740435039032,-943.50794952,0.00033,20]
[354340665,1740435039043,-1022.25709109,0.00033,20]
[354340667,1740435039060,-46768.7,0.00033,20]
[354340669,1740435039073,-339.97549824,0.00033,20]
[354340671,1740435039085,-2803.28254182,0.00033,20]
[354340674,1740435039097,-4693.925424,0.00033,20]
[354340676,1740435039109,-5430.2201149,0.00033,20]
[354340679,1740435039130,-1078.88105376,0.00033,20]
[354340751,1740435039747,-151.0,0.000298,7]
[354340753,1740435039757,-151.0,0.000298,7]
[354340755,1740435039767,-23176.99993978,0.00033,20]
[354340757,1740435039779,-12447.53810377,0.00033,20]
[354340760,1740435039794,-312.66189625,0.00033,20]
[354340767,1740435039876,-260.81584032,0.00033,20]
[354340771,1740435039907,-151.0,0.000299,7]
[354340773,1740435039918,-369.0,0.00033,20]
[354340775,1740435039930,-1524.65595959,0.00033,20]
[354340777,1740435039942,-8922.77069593,0.00033,20]
[354340780,1740435039954,-8400.4428559,0.00033,20]
[354340782,1740435039965,-1181.68000029,0.00033,20]
[354340784,1740435039977,-250.04026915,0.00033,20]
[354340796,1740435040093,-2409.0,0.00029899,5]
[354340798,1740435040103,-2798.20200011,0.00033,20]
[354340801,1740435040116,-470.0,0.00033,20]
[354340803,1740435040127,-132330.64629782,0.00033,20]
[354340805,1740435040138,-151.0,0.00033,7]
[354340807,1740435040148,-151.0,0.00033,7]
[354340809,1740435040159,-151.421625,0.00033,7]
[354340811,1740435040168,-168.755285,0.00033,7]
[354340813,1740435040178,-168.755285,0.00033,7]
[354340815,1740435040187,-168.755285,0.00033,7]
[354340817,1740435040197,-168.755285,0.00033,7]
[354340819,1740435040207,-151.0,0.00033,7]
[354340821,1740435040217,-151.0,0.00033,7]
[354340823,1740435040227,-151.0,0.00033,7]
[354340825,1740435040236,-151.0,0.00033,7]
[354340827,1740435040245,-158.47517,0.00033,7]
[354340829,1740435040255,-151.0,0.00033,7]
[354340831,1740435040264,-151.0,0.00033,7]
[354340833,1740435040274,-197.115721,0.00033,7]
[354340835,1740435040283,-151.0,0.00033,7]
[354340837,1740435040293,-269.218041,0.00033,7]
[354340839,1740435040303,-364.352786,0.00033,7]
[354340841,1740435040313,-364.352786,0.00033,7]
[354340843,1740435040322,-364.352786,0.00033,7]
[354340845,1740435040332,-364.35278,0.00033,7]
[354340847,1740435040343,-150.0,0.00033046,7]
[354340849,1740435040353,-500.0,0.00033136,7]
[354340851,1740435040363,-150.0,0.00033175,2]
[354340853,1740435040374,-999.0,0.00033191,4]
[354340855,1740435040384,-500.0,0.00033273,7]
[354340857,1740435040395,-150.0,0.00033293,7]
[354340859,1740435040405,-1948.0,0.00033324,2]
[354340861,1740435040415,-1000.0,0.00033337,2]
[354340863,1740435040424,-150.0,0.00033355,7]
[354340865,1740435040433,-500.0,0.0003341,7]
[354340867,1740435040443,-22115.8315882,0.000335,2]
[354340869,1740435040452,-728.1,0.000335,31]
[354340871,1740435040462,-728.1,0.000335,31]
[354340873,1740435040472,-728.1,0.000335,31]
[354340875,1740435040481,-728.1,0.000335,31]
[354340876,1740435040490,-728.1,0.000335,31]
[354340878,1740435040500,-728.1,0.000335,31]
[354340880,1740435040510,-728.1,0.000335,31]
[354340882,1740435040519,-728.1,0.000335,31]
[354340884,1740435040529,-728.1,0.000335,31]